Cogmind - Beta 14 @@@ ROGUE MODE // 2024.08.14 @ 03:41:54 Player: T1-M4T Result: Destroyed by P-80 Master with Gamma Rifle Performance ------------- Evolutions (9) 4500 Regions Visited (29) 5800 Robots Destroyed (322) 1610 Value Destroyed (13809) 13809 Prototype IDs (53) 1060 Alien Tech Used (2) 400 Bonus (8933) 8933 TOTAL SCORE: 36112 Bonus ------- High Alert Combat Kills 2659 Follower Combat Kills 5852 Network Hubs Disabled 200 Met Data Miner 300 Met Imprinter 300 Was Imprinted 300 Met Zhirov 300 Built Enhanced Grunts 300 A7 Reached Mainframe 300 Met R17 at Cetus 500 Friendly Fire -2078 Cogmind --------- Core Integrity 0/1600 Matter 189/300 Energy 19/100 System Corruption 26% Temperature Cool (0) Movement Hovering (60) Location -1/Command Parts ------- > --- POWER (3) -------- (None) > --- PROPULSION (6) --- Antigrav Array > --- UTILITY (12) ----- (None) > --- WEAPON (4) ------- Enhanced Nova Cannon > --- INVENTORY (5) ---- Layered Light Armor Plating Smartbomb Launcher Improved Plasma Cutter Peak State ------------ > --- POWER ------------ Reinforced Antimatter Reactor Quantum Reactor Light Quantum Reactor > --- PROPULSION ------- Advanced Medium Treads Biometal Medium Treads Biometal Medium Treads Biometal Medium Treads Improved Heavy Siege Treads > --- UTILITY ---------- Experimental Power Amplifier Advanced Cryofiber Web Advanced Heat Sink Large Storage Unit Long-range Sensor Array Armor Integrity Analyzer Armor Integrity Analyzer Heavy Armor Plating Makeshift Light Armor Plating Graphene Brace Beam Splitter > --- WEAPON ----------- Compact HERF Cannon Enhanced Nova Cannon Enhanced Nova Cannon Linear Accelerator > --- INVENTORY -------- Light Quantum Reactor Light Quantum Reactor Armored Heavy Treads Centrium Heavy Treads Advanced Matter Compressor Makeshift Terrain Scan Processor Z-Drone Bay Enhanced Nova Cannon Railgun Improved Plasma Cutter [Rating: 179] Favorites ----------- Power Light Antimatter Reactor Engine Improved Deuterium Engine Power Core Reinforced Fission Core Reactor Light Antimatter Reactor Propulsion Armored Treads Treads Armored Treads Leg Flexi-carbon Leg Wheel Centrium Wheel Hover Unit Linear Gravjet Flight Unit Improved Diametric Drive Utility High-capacity Storage Unit Device Improved Heat Sink Storage High-capacity Storage Unit Processor Core Analyzer Hackware Hacking Suite Protection Hardened Heavy Armor Plating Weapon Heavy Particle Gun Energy Gun Heavy Particle Gun Energy Cannon Heavy Ion Cannon Ballistic Gun KE Penetrator Ballistic Cannon Linear Accelerator Launcher Heavy Missile Launcher Special Weapon Improved Plasma Cutter Slashing Weapon Katana Piercing Weapon Force Lance Special Melee Weapon Advanced Datajack Build | -11 -10 -10 -9 -9 -8 -7 -7 -7 -7 -6 -6 -6 -6 -6 -5 -5 -5 -5 -5 -4 -4 -4 -4 -4 -4 -3 -2 -1 -1 ------- Run | Yrd Mat Min Mat Sto Mat Fac Low Low Zio Pro Fac Low Low Dat Pro Fac Upp Upp Zhi Pro Fac Ext Cet Arc Hub Res Res Acc Com Slots Evolved 18 | . . . 2 . 2 2 . . . . 2 . . . . 2 . . . . 2 . . . . 2 2 2 . Power 2 | . . . . . . . . . . . 1 . . . . . . . . . . . . . . . 1 . . Propulsion 4 | . . . 1 . . 1 . . . . . . . . . 1 . . . . . . . . . 1 . . . Utility 10 | . . . 1 . 2 1 . . . . 1 . . . . . . . . . 2 . . . . 1 1 1 . Weapon 2 | . . . . . . . . . . . . . . . . 1 . . . . . . . . . . . 1 . Parts Attached 448 | 6 17 5 20 25 45 10 9 4 6 12 14 11 8 . 10 20 2 9 6 11 29 52 14 . 15 36 19 19 14 Power 45 | 1 3 2 1 2 2 . 1 . . 1 1 2 1 . 1 1 . 1 . 3 3 6 1 . 1 6 3 2 . Engine 21 | 1 3 2 1 2 2 . 1 . . . 1 1 1 . 1 1 . . . 1 1 1 . . . 1 . . . Core 5 | . . . . . . . . . . . . . . . . . . 1 . . 1 3 . . . . . . . Reactor 19 | . . . . . . . . . . 1 . 1 . . . . . . . 2 1 2 1 . 1 5 3 2 . Propulsion 85 | 2 3 1 8 3 11 3 1 . . 2 . . . . . 4 . . 1 . 5 16 . . 2 12 . 6 5 Treads 66 | 2 3 1 8 3 11 3 1 . . 2 . . . . . 4 . . 1 . 2 10 . . 2 6 . 5 2 Leg 2 | . . . . . . . . . . . . . . . . . . . . . . 1 . . . 1 . . . Wheel 8 | . . . . . . . . . . . . . . . . . . . . . 3 5 . . . . . . . Hover 6 | . . . . . . . . . . . . . . . . . . . . . . . . . . 3 . . 3 Flight 3 | . . . . . . . . . . . . . . . . . . . . . . . . . . 2 . 1 . Utility 150 | 1 2 . 3 5 10 3 1 2 2 1 5 8 5 . 7 9 2 4 3 3 10 17 6 . 8 13 10 7 3 Device 94 | . 1 . 1 3 4 1 1 2 1 1 2 7 4 . 6 7 2 4 3 3 6 9 3 . 5 7 4 5 2 Storage 10 | 1 1 . . 1 1 . . . . . . . . . 1 . . . . . . . 1 . 1 . 2 . 1 Processor 15 | . . . . . 2 1 . . 1 . 2 . . . . 1 . . . . 2 2 . . . 1 2 1 . Hackware 1 | . . . . . . . . . . . . . . . . . . . . . . . . . . 1 . . . Protection 30 | . . . 2 1 3 1 . . . . 1 1 1 . . 1 . . . . 2 6 2 . 2 4 2 1 . Artifact . | . . . . . . . . . . . . . . . . . . . . . . . . . . . . . . Weapon 168 | 2 9 2 8 15 22 4 6 2 4 8 8 1 2 . 2 6 . 4 2 5 11 13 7 . 4 5 6 4 6 Energy Gun 50 | 1 5 . 4 . 5 2 3 1 3 4 4 1 2 . 1 . . . . . . 5 5 . 2 2 . . . Energy Cannon 58 | . . 1 2 11 7 . . . . . 1 . . . . 4 . 2 . 2 6 7 . . . . 6 3 6 Ballistic Gun 19 | 1 2 1 1 . 2 . . . . . . . . . . 2 . . 1 2 4 . 1 . 1 . . 1 . Ballistic Cannon 2 | . . . . . . . . . . . . . . . . . . . . . . . . . . 2 . . . Launcher 25 | . 2 . 1 2 5 . 3 1 1 4 1 . . . 1 . . 2 . 1 1 . . . . . . . . Special Weapon 2 | . . . . . . . . . . . . . . . . . . . . . . 1 1 . . . . . . Impact Weapon . | . . . . . . . . . . . . . . . . . . . . . . . . . . . . . . Slashing Weapon 10 | . . . . 2 3 2 . . . . 2 . . . . . . . 1 . . . . . . . . . . Piercing Weapon 1 | . . . . . . . . . . . . . . . . . . . . . . . . . . 1 . . . Special Melee Weapon 1 | . . . . . . . . . . . . . . . . . . . . . . . . . 1 . . . . Unidentified Prototypes 30 | . . . 2 . 2 . . . 1 . 2 3 2 . 1 1 . . 2 . . . 5 . 1 3 3 2 . Corrupted Parts 14 | . . . . . 4 . . . . 2 . . . . . . . . . 2 . 3 . . 1 . . 2 . System Corruption 82 | . . . . . 37 . . . . 8 . . . . . . . . . 8 . 18 . . 5 . . 6 . Parts Lost 92 | . 1 1 2 4 6 . 1 . . . 1 . . . . 1 . . . 2 10 19 . . 21 2 2 16 3 Power 16 | . . . . . 1 . . . . . . . . . . 1 . . . 1 4 3 . . 3 . . 3 . Propulsion 26 | . 1 1 . 1 1 . 1 . . . . . . . . . . . . . 3 6 . . 4 . . 6 2 Utility 34 | . . . 1 2 2 . . . . . 1 . . . . . . . . 1 2 7 . . 10 1 2 4 1 Weapon 16 | . . . 1 1 2 . . . . . . . . . . . . . . . 1 3 . . 4 1 . 3 . Highest Loss Streak 14 | . 1 1 1 3 2 . 1 . . . 1 . . . . 1 . . . 1 5 14 . . 13 1 1 13 1 To Critical Strikes 1 | . . . . . . . . . . . . . . . . . . . . . 1 . . . . . . . . Average Slot Usage (%) 91 | . 90 100 99 99 97 91 92 91 91 92 92 92 93 93 92 93 94 94 93 94 97 97 94 94 83 57 88 72 6 Engine 5 | . 14 14 11 11 8 7 7 7 7 7 5 5 6 6 6 5 5 2 . 2 . 1 . . . 1 . . . Reactor 3 | . . . . . . . . . . . 6 6 6 6 6 5 5 5 5 5 9 2 1 5 3 3 12 9 . Treads 26 | . 27 28 32 32 25 29 30 30 30 30 26 26 26 26 26 28 29 29 29 29 24 18 21 21 17 13 21 15 4 Device 13 | . 5 14 12 19 17 15 15 14 15 15 12 12 13 13 12 11 11 11 10 11 14 12 9 10 8 9 16 18 1 Storage 6 | . 14 14 11 10 9 7 7 7 7 7 6 6 6 6 6 5 5 5 5 5 5 5 5 5 5 . 3 3 . Processor 9 | . . . . . 9 7 7 7 7 7 13 13 13 13 13 11 11 11 11 11 15 19 21 21 20 1 8 6 . Protection 6 | . . . 9 2 9 7 7 7 7 7 6 6 6 6 6 5 5 5 5 5 8 8 10 10 7 7 7 4 . Energy Gun 6 | . 15 6 12 . 3 14 14 14 14 14 10 6 6 6 5 1 . . . . . 4 4 5 5 2 . . . Energy Cannon 6 | . . 7 7 20 11 . . . . . 1 6 6 6 6 8 11 10 11 11 10 9 10 10 6 . 7 9 . Ballistic Gun 2 | . 12 14 1 . 3 . . . . . . . . . . 4 5 5 4 4 4 . . . 1 . . . . Peak Build Rating 179 | 6 10 16 20 23 31 44 47 47 51 58 68 72 72 71 73 87 82 82 84 86 102 118 129 124 127 136 166 179 45 Average Rating 64 | 4 7 12 17 21 28 37 44 46 48 52 66 67 69 71 72 82 81 81 82 83 98 101 120 124 111 85 157 141 26 On Entrance 1935 | . 6 10 16 16 19 29 44 47 47 49 58 68 69 71 71 73 82 82 82 83 86 93 117 124 124 59 132 160 18 Naked Turns 56 | . . . . . . . . . . . . . . . . . . . . . . . . . . 16 . 36 4 Heaviest Build 166 | 10 31 37 42 46 63 76 78 78 80 82 97 101 100 96 100 110 110 114 104 114 121 123 125 125 166 88 149 165 13 Greatest Support 215 | 40 40 40 60 60 63 80 80 80 80 88 88 88 88 88 88 121 119 119 119 119 123 160 160 160 160 215 215 215 26 Greatest Overweight (x) 30 | . . . . 1 1 . . . . . 1 1 1 1 1 1 . . . . 7 3 . . 30 2 . . 4 Average Overweight (x) . | . . . . . . . . . . . . 1 1 1 1 . . . . . . . . . . . . . . Largest Inventory Capacity 25 | 8 15 15 15 15 20 20 20 20 20 20 20 20 20 20 20 20 20 20 20 20 20 20 20 20 25 25 15 15 10 Average Capacity 18 | 6 9 15 15 14 16 20 20 20 20 20 20 20 20 20 20 20 20 20 20 20 20 20 20 20 22 5 14 13 5 Most Carried 20 | 6 9 15 15 15 15 20 20 20 20 20 20 20 20 20 20 20 20 20 20 20 20 20 20 20 20 9 15 15 5 Average Carried 17 | 3 7 12 14 14 14 17 19 19 19 19 19 19 20 20 19 19 19 20 19 19 18 17 19 19 17 4 12 11 4 Final Capacity 25 | 8 15 15 15 15 20 20 20 20 20 20 20 20 20 20 20 20 20 20 20 20 20 20 20 20 25 5 15 5 5 Final Carried 20 | 6 8 15 15 14 14 20 20 20 20 20 20 20 20 20 20 19 20 20 20 19 16 20 20 20 9 5 15 4 4 Class Distribution -------------------- 37% | Scavenger-Mutant 30% | Mutant 12% | Scavenger-Tank 9% | Scavenger-Skirmisher 3% | Commander-Tank 3% | Scavenger-Gunner Dominant Class ---------------- Mutant | -10/Materials Scavenger-Mutant | -10/Mines Scavenger-Mutant | -9/Materials Scavenger-Mutant | -9/Storage Scavenger-Mutant | -8/Materials Mutant | -7/Factory Mutant | -7/Lower Caves Mutant | -7/Lower Caves Mutant | -7/Zion Mutant | -6/Proximity Caves Scavenger-Mutant | -6/Factory Scavenger-Mutant | -6/Lower Caves Scavenger-Mutant | -6/Lower Caves Scavenger-Mutant | -6/Data Miner Scavenger-Mutant | -5/Proximity Caves Scavenger-Skirmisher | -5/Factory Scavenger-Skirmisher | -5/Upper Caves Scavenger-Skirmisher | -5/Upper Caves Scavenger-Skirmisher | -5/Zhirov Scavenger-Tank | -4/Proximity Caves Scavenger-Tank | -4/Factory Scavenger-Tank | -4/Extension Commander-Tank | -4/Cetus Commander-Tank | -4/Archives Commander-Tank | -4/Hub_04(d) Sprinter | -3/Research Scavenger-Tank | -2/Research Scavenger-Tank | -1/Access Mutant | -1/Command Resources | -11 -10 -10 -9 -9 -8 -7 -7 -7 -7 -6 -6 -6 -6 -6 -5 -5 -5 -5 -5 -4 -4 -4 -4 -4 -4 -3 -2 -1 -1 ----------- Run | Yrd Mat Min Mat Sto Mat Fac Low Low Zio Pro Fac Low Low Dat Pro Fac Upp Upp Zhi Pro Fac Ext Cet Arc Hub Res Res Acc Com Matter Collected 7659 | 249 260 168 423 530 570 120 332 114 76 189 162 140 80 . 156 259 132 204 30 200 409 475 257 9 203 477 863 501 71 Remotely . | . . . . . . . . . . . . . . . . . . . . . . . . . . . . . . Salvage Created 15645 | . 438 403 1140 1436 1504 120 365 59 . 351 159 107 . . 279 876 117 311 90 298 1071 1409 135 79 1003 800 1165 1930 . Parts 754 | . 48 28 73 75 93 9 26 1 . 16 13 5 . . 12 33 12 10 1 17 45 48 4 1 34 26 56 68 . Haulers Intercepted 13 | . 1 . 4 3 4 . . . . . . . . . . . . . . . . 1 . . . . . . . Recyclers Shooed 6 | . . . . . 1 . . . . . . . . . . . . . . . . 1 . . . 3 1 . . Parts Field Recycled . | . . . . . . . . . . . . . . . . . . . . . . . . . . . . . . Retrieved Matter . | . . . . . . . . . . . . . . . . . . . . . . . . . . . . . . Parts Self-Destructed 102 | . . . . . . . 18 1 . 16 . 15 8 . 12 . 12 13 1 6 . . . . . . . . . Prevented 25 | . . . . . . . . . . 12 . 2 . . . . . 1 . 10 . . . . . . . . . Kills | -11 -10 -10 -9 -9 -8 -7 -7 -7 -7 -6 -6 -6 -6 -6 -5 -5 -5 -5 -5 -4 -4 -4 -4 -4 -4 -3 -2 -1 -1 ------- Run | Yrd Mat Min Mat Sto Mat Fac Low Low Zio Pro Fac Low Low Dat Pro Fac Upp Upp Zhi Pro Fac Ext Cet Arc Hub Res Res Acc Com Combat Hostiles Destroyed 252 | . 16 12 19 25 28 4 13 4 . 13 4 2 . . 7 15 2 6 . 7 12 17 2 1 8 3 11 21 . Guns 82 | . 12 7 14 . 11 4 6 1 . 2 1 1 . . 2 5 . 2 . 1 2 3 . . 5 . . 3 . Cannons 96 | . . 5 3 20 10 . . . . . . 1 . . 1 10 2 2 . 4 5 11 . 1 1 3 8 9 . AOE 46 | . 4 . 2 1 5 . 7 3 . 11 3 . . . 4 . . 2 . 1 2 . . . . . . 1 . Classes Destroyed 22 | . 5 3 3 2 1 1 1 . . . . . . . . . . 1 . 1 2 . . . 1 . . 1 . Worker 10 | . . . 1 . 1 . . . . . . . . . . 1 . . . . . 1 . . 1 2 2 1 . Builder 17 | . 1 . . 3 5 . . . . . . . . . . . . . . . 2 1 . . 1 . 1 3 . Tunneler 1 | . . 1 . . . . . . . . . . . . . . . . . . . . . . . . . . . Hauler 13 | . 1 . 4 3 4 . . . . . . . . . . . . . . . . 1 . . . . . . . Recycler 10 | . . . . 1 . . . . . . 1 . . . . . . . . . 1 . . . . 5 2 . . Mechanic 2 | . . . . . . . . . . . . . . . . . . . . . 1 1 . . . . . . . Operator 1 | . . . 1 . . . . . . . . . . . . . . . . . . . . . . . . . . Drone 2 | . . . . . . . . . . . . . . . . . . . . 2 . . . . . . . . . Watcher 10 | . 3 . 1 1 1 . . . . . . . . . . 1 . . . . 2 . . . . . . 1 . Swarmer 41 | . 9 3 . . 6 3 4 . . 5 3 . . . . 5 . . . . . 1 . . 1 . 1 . . Grunt 112 | . 7 6 14 12 13 . 4 4 . 6 . . . . 5 5 . 3 . 3 3 11 . . 3 . 3 10 . Brawler 6 | . . . 1 2 . . . . . . . . . . . 1 . 1 . . . . . . . . 1 . . Duelist 7 | . . . . 2 1 . . . . 2 . . . . . . . . . . . . . . . . 1 1 . Protector 1 | . . . . . . . . . . . . . . . . . . . . . . . . . 1 . . . . Sentry 32 | . . 2 4 9 7 . 1 . . . . 1 . . . 3 . 1 . . 1 2 . 1 . . . . . Specialist 2 | . . . . . . . . . . . . . . . . . . . . . . . . . . . . 2 . Hunter 22 | . . . . . 1 . 2 . . . . . . . 2 . . . . 2 4 2 . . . . 4 5 . Programmer 14 | . . . . . . 1 1 . . . 1 1 . . . 1 2 . . . 3 . . . . 3 1 . . Heavy 3 | . . . . . . . . . . . . . . . . . . . . . 1 . . . . . . 2 . Behemoth 3 | . . . . . . . . . . . . . . . . . . 1 . . . 1 . . . . . 1 . Cetus Guard 2 | . . . . . . . . . . . . . . . . . . . . . . . 2 . . . . . . Enhanced Grunt 1 | . . . . . . . . . . . . . . . . . . . . . . . . . 1 . . . . Lightning 3 | . . . . . . . . . . . . . . . . . . . . . . . . . 3 . . . . Assembled 1 | . . 1 . . . . . . . . . . . . . . . . . . . . . . . . . . . Thug 4 | . . . . . . . . . . . . . . . . . . . . . . . . . 4 . . . . Savage 1 | . . . . . . . . . . . . . . . . . . . . . . . . . 1 . . . . Butcher 1 | . . . . . . . . . . . . . . . . . . . . . . 1 . . . . . . . Mutant 1 | . . . . . . . 1 . . . . . . . . . . . . . . . . . . . . . . Best Kill Streak 13 | . 6 3 4 5 5 2 4 4 . 5 4 1 . . 5 5 2 4 . 3 3 4 2 1 4 3 4 13 . Combat Bots Only 10 | . 5 3 3 6 3 2 4 4 . 5 3 1 . . 5 5 2 4 . 3 3 3 2 1 4 1 3 10 . Max Kills in Single Turn 5 | . 2 2 1 2 3 1 2 2 . 3 4 1 . . 2 2 1 1 . 1 2 2 1 1 5 1 1 3 . Gunslinging . | . . . . . . . . . . . . . . . . . . . . . . . . . . . . . . Exploded 3 | . 2 . 1 1 3 . 2 2 . 3 3 . . . 2 . . 1 . 1 2 . . . . . . 1 . Melee . | . . . . . . . . . . . . . . . . . . . . . . . . . . . . . . Uniques/NPCs Destroyed . | . . . . . . . . . . . . . . . . . . . . . . . . . . . . . . Combat | -11 -10 -10 -9 -9 -8 -7 -7 -7 -7 -6 -6 -6 -6 -6 -5 -5 -5 -5 -5 -4 -4 -4 -4 -4 -4 -3 -2 -1 -1 -------- Run | Yrd Mat Min Mat Sto Mat Fac Low Low Zio Pro Fac Low Low Dat Pro Fac Upp Upp Zhi Pro Fac Ext Cet Arc Hub Res Res Acc Com Hostile Shots Fired 2183 | . 102 39 53 77 123 22 88 18 . 35 15 12 . . 33 74 4 43 . 74 174 214 16 5 219 99 94 390 160 Missed 702 | . 35 6 12 27 43 5 25 2 . 8 6 7 . . 10 20 2 20 . 28 63 71 7 3 45 44 32 111 70 Damage Taken 28299 | . 697 445 541 881 1190 258 836 301 . 510 160 48 . . 345 1201 52 406 . 739 1680 2851 164 102 4387 976 1460 6007 2062 Core 3393 | . 112 85 89 122 182 32 27 . . 66 14 4 . . 46 23 . 33 . 63 133 108 20 . 523 79 23 1100 509 Absorbed by Shields 682 | . . . . . . . . . . . . 5 . . 52 37 . 14 . 152 136 18 104 32 90 42 . . . Reduced by Siege Mode 785 | . . . . . . . . . . . . . . . . . . . . . . . . . 314 . 37 434 . Redirected to Shielding 60 | . . . . . . . . . . . . . . . . . . . . . . . . . . 60 . . . Ignored by Resistances 1580 | . . . . . 4 . . . . . . . . . . . . . . . 107 285 . . 217 . 52 915 . Regen/Repaired (Parts) 905 | . 222 . 92 202 . 103 . . 286 . . . . . . . . . . . . . . . . . . . . Core Remaining (%) 71 | 100 . 21 . 47 66 . . . . 82 . . . . 92 . . . . 88 . . . . 31 85 98 . . Volleys Fired 804 | . 76 41 50 73 84 13 27 6 . 14 5 4 . . 12 45 3 16 . 19 47 82 3 4 42 23 45 62 8 Largest 4 | . 2 2 2 2 2 2 2 2 . 2 2 2 . . 2 3 3 3 . 3 3 3 3 2 3 3 3 4 1 Hottest 426 | . 85 85 112 116 116 110 110 110 . 130 140 140 . . 140 221 221 221 . 221 223 276 276 195 275 216 306 426 120 Shots Fired 1606 | . 144 67 98 122 156 28 45 9 . 24 8 8 . . 20 125 9 34 . 31 93 169 12 8 100 35 86 167 8 Gun 662 | . 141 38 73 . 66 28 37 5 . 17 5 4 . . 8 50 3 11 . 6 23 41 4 . 75 12 . 15 . Cannon 882 | . . 29 23 112 79 . . . . . 1 4 . . 8 75 6 18 . 21 68 128 8 8 25 23 86 152 8 Launcher 62 | . 3 . 2 10 11 . 8 4 . 7 2 . . . 4 . . 5 . 4 2 . . . . . . . . Special . | . . . . . . . . . . . . . . . . . . . . . . . . . . . . . . Kinetic 350 | . 70 26 12 . 33 . . . . . . . . . . 41 3 11 . 6 23 3 . . 25 23 23 51 . Thermal 881 | . 71 41 20 8 80 28 37 5 . 17 6 8 . . 16 84 6 18 . 13 47 148 12 8 75 10 51 64 8 Explosive 53 | . 3 . 2 10 2 . 8 4 . 7 2 . . . 4 . . 5 . 4 2 . . . . . . . . Electromagnetic 322 | . . . 64 104 41 . . . . . . . . . . . . . . 8 21 18 . . . 2 12 52 . Robot Hit Streak 38 | . 10 12 18 20 16 5 7 10 . 8 3 4 . . 8 9 2 12 . 8 8 18 5 5 11 8 13 38 . Robot Miss Streak 8 | . 4 2 4 1 8 4 4 1 . 2 2 2 . . 4 8 1 2 . 3 6 5 2 3 7 2 2 7 . Penetration Max 1 | . . . . . . . . . . . . . . . . 1 . . . . 1 . . . . . . 1 . Secondary Targets 7 | . 2 . 1 . 1 . . . . 1 . . . . . . . . . . . . . . 2 . . . . Max Gunslinging Chain 1 | . 1 . 1 . 1 . . . . 1 . . . . . . . . . . . . . . 1 . . . . Shots Hit Robots 1000 | . 86 34 76 79 118 12 24 5 . 17 6 5 . . 12 63 4 26 1 16 46 89 7 6 52 24 58 134 . Core Hits 590 | . 32 18 48 39 80 7 27 10 . 31 9 2 . . 16 31 3 15 1 14 34 46 3 2 36 9 28 49 . Critical Kills 8 | . . . . . . . . . . . . . . . . . . . . . 1 2 2 . 2 . . 1 . Critical Parts Destroyed 4 | . . 1 1 . . . . . . . . . . . . 1 . 1 . . . . . . . . . . . Critical Strikes 29 | . 3 3 1 4 1 1 . . . 1 . . . . . 1 . 1 . . 1 3 3 . 2 . 1 3 . Burn 10 | . 3 2 . . 1 1 . . . 1 . . . . . . . . . . . 1 1 . . . . . . Meltdown 7 | . . . . . . . . . . . . . . . . . . . . . 1 2 2 . 1 . . 1 . Destroy 5 | . . 1 1 . . . . . . . . . . . . 1 . 1 . . . . . . 1 . . . . Blast 2 | . . . . . . . . . . . . . . . . . . . . . . . . . . . 1 1 . Corrupt 5 | . . . . 4 . . . . . . . . . . . . . . . . . . . . . . . 1 . Melee Attacks 19 | . . . . 5 3 7 . . . . 2 . . . . . . . 1 . . . . . . 1 . . . Impact . | . . . . . . . . . . . . . . . . . . . . . . . . . . . . . . Slashing 18 | . . . . 5 3 7 . . . . 2 . . . . . . . 1 . . . . . . . . . . Piercing 1 | . . . . . . . . . . . . . . . . . . . . . . . . . . 1 . . . Sneak Attacks 1 | . . . . . . . . . . . . . . . . . . . . . . . . . . 1 . . . Combat Hostiles . | . . . . . . . . . . . . . . . . . . . . . . . . . . . . . . Follow-up Attacks . | . . . . . . . . . . . . . . . . . . . . . . . . . . . . . . Damage Inflicted 38110 | . 1250 676 1536 2271 3411 246 1437 556 . 1703 603 164 . . 848 1939 183 1290 63 937 2775 3234 269 207 2663 1059 2762 6028 . Guns 8342 | . 941 418 932 . 1048 246 397 39 . 259 90 96 . . 112 596 59 160 . 28 330 727 70 . 1241 193 . 360 . Cannons 20043 | . . 253 337 1704 1310 . . . . . 26 68 . . 111 1343 124 575 . 488 1531 2464 199 207 474 745 2736 5348 . Explosions 9435 | . 306 . 267 567 1048 . 1040 517 . 1444 487 . . . 625 . . 555 . 421 904 . . . 948 . . 306 . Melee 159 | . . . . . . . . . . . . . . . . . . . 63 . . . . . . 96 . . . Ramming 131 | . 3 5 . . 5 . . . . . . . . . . . . . . . 10 43 . . . 25 26 14 . Kinetic 5709 | . 357 264 175 . 529 . . . . . . . . . . 524 59 160 . 28 330 53 . . 319 745 686 1480 . Thermal 17423 | . 584 407 407 124 1302 246 397 39 . 259 116 164 . . 223 1415 124 575 . 302 1536 2662 269 207 1514 162 1625 2764 . Explosive 6791 | . 306 . 132 531 317 . 1040 517 . 1444 487 . . . 625 . . 555 . 421 416 . . . . . . . . Electromagnetic 7897 | . . . 822 1616 1258 . . . . . . . . . . . . . . 186 483 476 . . 830 31 425 1770 . Impact . | . . . . . . . . . . . . . . . . . . . . . . . . . . . . . . Slashing 63 | . . . . . . . . . . . . . . . . . . . 63 . . . . . . . . . . Piercing 96 | . . . . . . . . . . . . . . . . . . . . . . . . . . 96 . . . Highest Corruption 59 | . . . . . 42 1 2 2 2 8 . . . . . . . . . 8 1 19 19 19 59 2 2 17 26 Average Corruption 8 | . . . . . 7 1 1 2 2 4 . . . . . . . . . 5 1 13 19 19 26 1 1 11 18 Corruption Purged . | . . . . . . . . . . . . . . . . . . . . . . . . . . . . . . Corruption Blocked . | . . . . . . . . . . . . . . . . . . . . . . . . . . . . . . Effects 229 | . . . . . 7 6 8 17 . 1 . . . . . . . . . . 1 85 23 12 27 6 5 14 17 Message Errors 49 | . . . . . 1 1 1 5 . 1 . . . . . . . . . . . 23 5 1 5 1 1 1 3 Matter Fused 48 | . . . . . 3 1 3 4 . . . . . . . . . . . . 1 17 2 2 5 3 . 2 5 Heat Flow Errors 22 | . . . . . 1 . . 1 . . . . . . . . . . . . . 8 3 . 3 . . 5 1 Energy Discharges 28 | . . . . . . 1 . 2 . . . . . . . . . . . . . 13 3 3 1 2 1 . 2 Parts Rejected 1 | . . . . . . . . . . . . . . . . . . . . . . . . . . . . . 1 Parts Fused 3 | . . . . . . . . . . . . . . . . . . . . . . 1 2 . . . . . . Data Loss (minor) 25 | . . . . . . 1 1 2 . . . . . . . . . . . . . 9 1 5 4 . . . 2 Data Loss (major) 13 | . . . . . 1 . 1 2 . . . . . . . . . . . . . 2 3 . 2 . . 1 1 Misfires 15 | . . . . . . 2 1 1 . . . . . . . . . . . . . 6 3 . . . 1 1 . Alerts 3 | . . . . . 1 . 1 . . . . . . . . . . . . . . 1 . . . . . . . Misdirections 7 | . . . . . . . . . . . . . . . . . . . . . . . 1 1 . . . 3 2 Weapon Failures 15 | . . . . . . . . . . . . . . . . . . . . . . 5 . . 7 . 2 1 . Overload Shots . | . . . . . . . . . . . . . . . . . . . . . . . . . . . . . . Overflow Damage 902 | . 21 . 9 42 52 . 54 . . 52 27 . . . . 30 . 8 . 29 158 23 . . 26 101 63 207 . Projectiles 457 | . . . 9 10 31 . . . . . . . . . . 30 . . . 3 19 23 . . . 91 63 178 . Explosions 435 | . 21 . . 32 21 . 54 . . 52 27 . . . . . . 8 . 26 139 . . . 26 . . 29 . Melee 10 | . . . . . . . . . . . . . . . . . . . . . . . . . . 10 . . . Knockbacks 27 | . . . . . . . . . . . . . . . . . . . . . . . . . . 7 11 9 . Impact 1 | . . . . . . . . . . . . . . . . . . . . . . . . . . 1 . . . Kinetic 21 | . . . . . . . . . . . . . . . . . . . . . . . . . . 5 8 8 . Secondary 5 | . . . . . . . . . . . . . . . . . . . . . . . . . . 1 3 1 . Self-Inflicted Damage 526 | . 39 . 19 151 18 . . 55 . . . . . . . . . . . . 80 15 . . 105 12 . 32 . Shots 13 | . 2 . 1 5 1 . . 1 . . . . . . . . . . . . 1 . . . 1 . . 1 . Rammed 9 | . 1 1 . . 1 . . . . . . . . . . . . . . . 1 2 . . . 1 1 1 . Targets Rammed 9 | . 1 1 . . 1 . . . . . . . . . . . . . . . 1 2 . . . 1 1 1 . Kicked . | . . . . . . . . . . . . . . . . . . . . . . . . . . . . . . Crushed . | . . . . . . . . . . . . . . . . . . . . . . . . . . . . . . Highest Temperature 555 | . 177 3 30 63 81 . 116 142 . 198 48 120 . . 108 312 . 204 . 84 150 327 208 48 270 . 459 555 79 Average Temperature 75 | . 56 3 10 15 27 . 40 44 . 61 25 59 . . 49 117 . 73 . 40 46 96 97 26 83 . 149 212 43 Received Heat Transfer 4419 | . 219 129 273 279 486 . 242 162 . 180 . 5 . . 84 128 . 79 . 108 34 701 . . 451 67 153 459 180 Effects 10 | . . . . . . . . . . . . . . . . 1 . . . . . 1 . . . . 5 3 . Shutdowns 3 | . . . . . . . . . . . . . . . . . . . . . . . . . . . 3 . . Energy Bleed 2 | . . . . . . . . . . . . . . . . 1 . . . . . . . . . . . 1 . Interference 3 | . . . . . . . . . . . . . . . . . . . . . . 1 . . . . 2 . . Short Circuit 1 | . . . . . . . . . . . . . . . . . . . . . . . . . . . . 1 . Damage (minor) 1 | . . . . . . . . . . . . . . . . . . . . . . . . . . . . 1 . Siege Activations 15 | . . . . . . . . . . . . . . . . . . . . . . . . 1 3 . 7 4 . Total Turns 347 | . . . . . . . . . . . . . . . . . . . . . . . . 8 67 . 77 195 . Longest Duration 101 | . . . . . . . . . . . . . . . . . . . . . . . . 8 50 . 18 101 . Robots Corrupted 24 | . . . . 4 2 . . . . . . . . . . . . . . 1 2 2 . . 3 1 3 6 . Combat Hostiles 20 | . . . . 4 2 . . . . . . . . . . . . . . 1 2 2 . . . . 3 6 . Parts Fried 47 | . . . 2 15 6 . . . . . . . . . . . . . . 1 4 3 . . 1 3 5 7 . Impact Corruptions 1 | . . . . . . . . . . . . . . . . . . . . . . . . . . 1 . . . Robots Melted 9 | . . . . . . . . . . . . . . . . . . . . . 1 2 2 . 2 . . 2 . Combat Hostiles 8 | . . . . . . . . . . . . . . . . . . . . . 1 1 2 . 2 . . 2 . Parts Melted 51 | . 2 1 1 . 1 3 1 . . 1 1 . . . . 3 . 1 . . 5 15 1 1 8 . 1 5 . Heat Transferred 23326 | . 1757 925 557 198 2320 518 777 74 . 442 185 222 . . 333 1910 137 696 . 385 1481 3958 434 248 1924 300 1294 2251 . Parts Sabotaged 7 | . . . . . . . . . . . . . . . . . . . . . . . . . . 3 . 4 . Parts Stolen . | . . . . . . . . . . . . . . . . . . . . . . . . . . . . . . Parts Stripped . | . . . . . . . . . . . . . . . . . . . . . . . . . . . . . . Power Chain Reactions 8 | . . . 2 1 2 . . . . . . . . . . . . . . . 1 . . . 1 . . 1 . Alert | -11 -10 -10 -9 -9 -8 -7 -7 -7 -7 -6 -6 -6 -6 -6 -5 -5 -5 -5 -5 -4 -4 -4 -4 -4 -4 -3 -2 -1 -1 ------- Run | Yrd Mat Min Mat Sto Mat Fac Low Low Zio Pro Fac Low Low Dat Pro Fac Upp Upp Zhi Pro Fac Ext Cet Arc Hub Res Res Acc Com Peak Influence 1648 | . 265 133 473 550 691 466 . . . . 238 . . . . 390 . . . . 747 856 667 435 837 846 1648 1550 1566 Initial 992 | . . 24 51 199 232 314 . . . . 188 . . . . 69 . . . . 300 299 479 223 151 289 385 898 992 Average 366 | . 76 67 225 286 462 301 . . . . 108 . . . . 166 . . . . 408 409 611 398 491 498 866 1193 1243 Maximum Alert Level 5 | . 1 . 2 2 2 2 . . . . 1 . . . . 1 . . . . 3 3 2 2 3 3 5 4 4 Low Security (%) 34 | 100 96 100 45 40 . 9 . . . . 82 . . . . 65 . . . . . 3 . . 7 . . . . Level 1 29 | . 3 . 45 28 25 74 . . . . 17 . . . . 34 . . . . 46 53 . 24 44 39 18 . . Level 2 25 | . . . 8 31 74 15 . . . . . . . . . . . . . . 45 30 100 75 18 44 35 . . Level 3 6 | . . . . . . . . . . . . . . . . . . . . . 8 12 . . 29 15 13 35 38 Level 4 4 | . . . . . . . . . . . . . . . . . . . . . . . . . . . 22 64 61 Level 5 . | . . . . . . . . . . . . . . . . . . . . . . . . . . . 10 . . High Security . | . . . . . . . . . . . . . . . . . . . . . . . . . . . . . . Max Security . | . . . . . . . . . . . . . . . . . . . . . . . . . . . . . . Squads Dispatched 76 | . 2 . 5 8 5 3 . . . 1 4 . . . . 5 . . . . 4 4 . . 1 5 13 14 2 Investigation 7 | . 1 . . 1 1 . . . . . . . . . . . . . . . . 1 . . . . 1 2 . Extermination 12 | . . . . . . 1 . . . . 1 . . . . 3 . . . . 2 . . . . 1 3 1 . Reinforcement 30 | . 1 . 5 2 2 2 . . . . 3 . . . . 2 . . . . 1 2 . . 1 2 1 6 . Assault 15 | . . . . 2 . . . . . 1 . . . . . . . . . . 1 1 . . . 1 5 2 2 Garrison 12 | . . . . 3 2 . . . . . . . . . . . . . . . . . . . . 1 3 3 . Intercept . | . . . . . . . . . . . . . . . . . . . . . . . . . . . . . . Searches Triggered . | . . . . . . . . . . . . . . . . . . . . . . . . . . . . . . Data Miner Redirects 1 | . . . . . . . . . . . . . . . . . . . . . . . . . . . . . 1 Construction Impeded 7 | . . . 1 . 1 . . . . . 1 . . . . 1 . . . . 1 . . . 1 . . 1 . Haulers Reinforced 1 | . . . . . . . . . . . . . . . . . . . . . . . . . . . 1 . . Active Scanning Responses . | . . . . . . . . . . . . . . . . . . . . . . . . . . . . . . Cargo Convoy Interrupts 1 | . . . . . . . . . . . . . . . . . . . . . . . . . . 1 . . . Stealth | -11 -10 -10 -9 -9 -8 -7 -7 -7 -7 -6 -6 -6 -6 -6 -5 -5 -5 -5 -5 -4 -4 -4 -4 -4 -4 -3 -2 -1 -1 --------- Run | Yrd Mat Min Mat Sto Mat Fac Low Low Zio Pro Fac Low Low Dat Pro Fac Upp Upp Zhi Pro Fac Ext Cet Arc Hub Res Res Acc Com Distress Signals 27 | . 3 . 1 2 3 . . . . . 1 . . . . . . . . . 4 2 2 . 3 2 2 1 1 Communications Jammed 4 | . . . . . . . . . . . . . . . . . . . . . 4 . . . . . . . . Distress Signals 1 | . . . . . . . . . . . . . . . . . . . . . 1 . . . . . . . . Times Spotted 536 | . 28 12 27 33 35 7 13 4 . 22 12 8 6 . 7 30 2 8 . 8 24 43 11 4 21 41 47 45 38 Peak Tracking Total 15 | . 6 3 5 4 4 3 4 4 . 10 4 3 4 . 5 6 2 5 . 4 5 5 5 2 9 10 7 12 15 Tactical Retreats 29 | . 2 . 1 2 1 1 . . . . . . 1 . . 2 . . . . 1 2 . . . 1 . 9 6 Traps | -11 -10 -10 -9 -9 -8 -7 -7 -7 -7 -6 -6 -6 -6 -6 -5 -5 -5 -5 -5 -4 -4 -4 -4 -4 -4 -3 -2 -1 -1 ------- Run | Yrd Mat Min Mat Sto Mat Fac Low Low Zio Pro Fac Low Low Dat Pro Fac Upp Upp Zhi Pro Fac Ext Cet Arc Hub Res Res Acc Com Traps Triggered 10 | . . . . . . . . . . . . . . . . 1 . . . . . 2 . . 3 . 2 2 . Indirectly 3 | . . . . . . . . . . . . . . . . . . . . . . . . . 3 . . . . Trap Hack Attempts . | . . . . . . . . . . . . . . . . . . . . . . . . . . . . . . Triggered . | . . . . . . . . . . . . . . . . . . . . . . . . . . . . . . Disarmed . | . . . . . . . . . . . . . . . . . . . . . . . . . . . . . . Reprogrammed 1 | . . . . 1 . . . . . . . . . . . . . . . . . . . . . . . . . Reused 1 | . . . . 1 . . . . . . . . . . . . . . . . . . . . . . . . . Traps Extracted . | . . . . . . . . . . . . . . . . . . . . . . . . . . . . . . Installed . | . . . . . . . . . . . . . . . . . . . . . . . . . . . . . . Triggered 3 | . . . . 1 . . . . . 1 . . . . . . . . . 1 . . . . . . . . . Machines | -11 -10 -10 -9 -9 -8 -7 -7 -7 -7 -6 -6 -6 -6 -6 -5 -5 -5 -5 -5 -4 -4 -4 -4 -4 -4 -3 -2 -1 -1 ---------- Run | Yrd Mat Min Mat Sto Mat Fac Low Low Zio Pro Fac Low Low Dat Pro Fac Upp Upp Zhi Pro Fac Ext Cet Arc Hub Res Res Acc Com Machines Disabled 41 | . 2 . . 9 3 . 1 . . . . . . . . 2 . . . . 7 4 1 2 7 1 2 . . Max in Single Turn 6 | . 2 . . 2 1 . 1 . . . . . . . . 1 . . . . 5 1 1 1 6 . 1 . . Garrison Access 1 | . . . . . . . . . . . 1 . . . . . . . . . . . . . . . . . . Network Hub 1 | . . . . . . . . . . . . . . . . . . . . . . . . . 1 . . . . Machines Repaired . | . . . . . . . . . . . . . . . . . . . . . . . . . . . . . . Machines Dismantled 2 | . . . . . . . . . . . . . . . . . . . . . . 1 1 . . . . . . Machines Sabotaged . | . . . . . . . . . . . . . . . . . . . . . . . . . . . . . . Overloaded Fab Kills . | . . . . . . . . . . . . . . . . . . . . . . . . . . . . . . Hacking | -11 -10 -10 -9 -9 -8 -7 -7 -7 -7 -6 -6 -6 -6 -6 -5 -5 -5 -5 -5 -4 -4 -4 -4 -4 -4 -3 -2 -1 -1 --------- Run | Yrd Mat Min Mat Sto Mat Fac Low Low Zio Pro Fac Low Low Dat Pro Fac Upp Upp Zhi Pro Fac Ext Cet Arc Hub Res Res Acc Com Machines Accessed 59 | . 6 1 4 10 6 4 1 1 . . 2 . 2 4 . 1 . . 9 . 1 1 3 1 . 1 . . 1 Terminals 28 | . 5 . 3 7 5 2 . 1 . . 1 . . . . . . . . . . . 3 . . . . . 1 Fabricators . | . . . . . . . . . . . . . . . . . . . . . . . . . . . . . . Repair Stations 8 | . 1 . 1 2 . 2 . . . . . . . . . 1 . . . . . 1 . . . . . . . Recycling Units . | . . . . . . . . . . . . . . . . . . . . . . . . . . . . . . Scanalyzers . | . . . . . . . . . . . . . . . . . . . . . . . . . . . . . . Garrison Access 5 | . . . . 1 1 . . . . . 1 . . . . . . . . . 1 . . . . 1 . . . Total Hacks 218 | . 21 1 7 31 15 15 1 1 . . 4 . 6 25 . 2 . . 48 . 1 3 7 25 . 1 . . 4 Successful 162 | . 18 1 3 15 4 8 1 1 . . 2 . 6 25 . 1 . . 48 . . 2 2 25 . . . . . Failed 56 | . 3 . 4 16 11 7 . . . . 2 . . . . 1 . . . . 1 1 5 . . 1 . . 4 Catastrophic 13 | . . . 1 3 3 . . . . . . . . . . . . . . . 1 . 3 . . 1 . . 1 Database Lockouts . | . . . . . . . . . . . . . . . . . . . . . . . . . . . . . . Manual 110 | . 8 . 3 17 11 9 . . . . 7 . . . . 17 . . . . . 2 2 . 3 7 5 6 13 Terminals 82 | . 17 . 5 25 12 9 . 1 . . 2 . . . . . . . . . . . 7 . . . . . 4 Fabricators . | . . . . . . . . . . . . . . . . . . . . . . . . . . . . . . Repair Stations 21 | . 4 . 2 4 . 6 . . . . . . . . . 2 . . . . . 3 . . . . . . . Recycling Units . | . . . . . . . . . . . . . . . . . . . . . . . . . . . . . . Scanalyzers . | . . . . . . . . . . . . . . . . . . . . . . . . . . . . . . Garrison Access 9 | . . . . 2 3 . . . . . 2 . . . . . . . . . 1 . . . . 1 . . . Terminal Hacks 131 | . 10 1 . 9 1 1 1 1 . . 1 . 6 25 . . . . 48 . . . 2 25 . . . . . Record 81 | . . . . . 1 . . 1 . . . . 5 11 . . . . 36 . . . 2 25 . . . . . Part Schematic 14 | . 2 . . . . . . . . . . . . 8 . . . . 4 . . . . . . . . . . Robot Schematic 3 | . . . . . . . . . . . . . . 3 . . . . . . . . . . . . . . . Robot Analysis 5 | . . . . 1 . . . . . . . . . . . . . . 4 . . . . . . . . . . Prototype ID Bank 9 | . 2 . . . . . . . . . . . . 3 . . . . 4 . . . . . . . . . . Open Door 6 | . . 1 . 3 . . 1 . . . . . 1 . . . . . . . . . . . . . . . . Open DSF 1 | . . . . . . . . . . . 1 . . . . . . . . . . . . . . . . . . Branch Access Points 1 | . . . . . . 1 . . . . . . . . . . . . . . . . . . . . . . . Alert Level 2 | . 1 . . 1 . . . . . . . . . . . . . . . . . . . . . . . . . Unreport Threat 3 | . 1 . . 2 . . . . . . . . . . . . . . . . . . . . . . . . . Locate Traps 2 | . 1 . . 1 . . . . . . . . . . . . . . . . . . . . . . . . . Reprogram Traps 1 | . . . . 1 . . . . . . . . . . . . . . . . . . . . . . . . . Zone Layout 3 | . 3 . . . . . . . . . . . . . . . . . . . . . . . . . . . . Fabricator Hacks . | . . . . . . . . . . . . . . . . . . . . . . . . . . . . . . Repair Station Hacks 18 | . 4 . 2 4 . 5 . . . . . . . . . 1 . . . . . 2 . . . . . . . Scan Component 10 | . 2 . 1 2 . 3 . . . . . . . . . 1 . . . . . 1 . . . . . . . Repair 8 | . 2 . 1 2 . 2 . . . . . . . . . . . . . . . 1 . . . . . . . Recycling Unit Hacks . | . . . . . . . . . . . . . . . . . . . . . . . . . . . . . . Scanalyzer . | . . . . . . . . . . . . . . . . . . . . . . . . . . . . . . Garrison Access Hacks 1 | . . . . . . . . . . . 1 . . . . . . . . . . . . . . . . . . Seal Access 1 | . . . . . . . . . . . 1 . . . . . . . . . . . . . . . . . . Unauthorized Hacks 12 | . 4 . 1 2 3 2 . . . . . . . . . . . . . . . . . . . . . . . Terminals 12 | . 4 . 1 2 3 2 . . . . . . . . . . . . . . . . . . . . . . . Botnet 11 | . 4 . 1 2 3 1 . . . . . . . . . . . . . . . . . . . . . . . Skim 1 | . . . . . . 1 . . . . . . . . . . . . . . . . . . . . . . . Fabricators . | . . . . . . . . . . . . . . . . . . . . . . . . . . . . . . Repair Stations . | . . . . . . . . . . . . . . . . . . . . . . . . . . . . . . Recycling Units . | . . . . . . . . . . . . . . . . . . . . . . . . . . . . . . Scanalyzers . | . . . . . . . . . . . . . . . . . . . . . . . . . . . . . . Garrison Access . | . . . . . . . . . . . . . . . . . . . . . . . . . . . . . . Data Cores Recovered . | . . . . . . . . . . . . . . . . . . . . . . . . . . . . . . Used . | . . . . . . . . . . . . . . . . . . . . . . . . . . . . . . Hacking Detections 38 | . 6 . 4 11 6 4 . . . . . . . . . 1 . . . . 1 . 3 . . 1 . . 1 Full Trace Events 4 | . 1 . . 2 1 . . . . . . . . . . . . . . . . . . . . . . . . Feedback Events . | . . . . . . . . . . . . . . . . . . . . . . . . . . . . . . Feedback Blocked . | . . . . . . . . . . . . . . . . . . . . . . . . . . . . . . Robot Schematics Acquired 3 | . . . . . . . . . . . . . . 3 . . . . . . . . . . . . . . . Robots Built . | . . . . . . . . . . . . . . . . . . . . . . . . . . . . . . Authchips . | . . . . . . . . . . . . . . . . . . . . . . . . . . . . . . Time . | . . . . . . . . . . . . . . . . . . . . . . . . . . . . . . Total Robot Build Rating . | . . . . . . . . . . . . . . . . . . . . . . . . . . . . . . Part Schematics Acquired 14 | . 2 . . . . . . . . . . . . 8 . . . . 4 . . . . . . . . . . Parts Built . | . . . . . . . . . . . . . . . . . . . . . . . . . . . . . . Authchips . | . . . . . . . . . . . . . . . . . . . . . . . . . . . . . . Time . | . . . . . . . . . . . . . . . . . . . . . . . . . . . . . . Total Part Build Rating . | . . . . . . . . . . . . . . . . . . . . . . . . . . . . . . Parts Repaired 6 | . 2 . 1 1 . 2 . . . . . . . . . . . . . . . . . . . . . . . Time 249 | . 52 . 26 45 . 64 . . . . . . . . . . . . . . . 62 . . . . . . . Parts Recycled . | . . . . . . . . . . . . . . . . . . . . . . . . . . . . . . Recycled Matter . | . . . . . . . . . . . . . . . . . . . . . . . . . . . . . . Retrieved Matter . | . . . . . . . . . . . . . . . . . . . . . . . . . . . . . . Retrieved Components . | . . . . . . . . . . . . . . . . . . . . . . . . . . . . . . Parts Scanalyzed . | . . . . . . . . . . . . . . . . . . . . . . . . . . . . . . Part Schematics Acquired . | . . . . . . . . . . . . . . . . . . . . . . . . . . . . . . Parts Damaged . | . . . . . . . . . . . . . . . . . . . . . . . . . . . . . . Bothacking | -11 -10 -10 -9 -9 -8 -7 -7 -7 -7 -6 -6 -6 -6 -6 -5 -5 -5 -5 -5 -4 -4 -4 -4 -4 -4 -3 -2 -1 -1 ------------ Run | Yrd Mat Min Mat Sto Mat Fac Low Low Zio Pro Fac Low Low Dat Pro Fac Upp Upp Zhi Pro Fac Ext Cet Arc Hub Res Res Acc Com Used RIF Installer . | . . . . . . . . . . . . . . . . . . . . . . . . . . . . . . Robots Hacked . | . . . . . . . . . . . . . . . . . . . . . . . . . . . . . . Non-combat . | . . . . . . . . . . . . . . . . . . . . . . . . . . . . . . Combat . | . . . . . . . . . . . . . . . . . . . . . . . . . . . . . . Robot Hacks Applied . | . . . . . . . . . . . . . . . . . . . . . . . . . . . . . . Relay Couplers Released . | . . . . . . . . . . . . . . . . . . . . . . . . . . . . . . Fabnet Peak Effective % . | . . . . . . . . . . . . . . . . . . . . . . . . . . . . . . Robots Rewired 17 | . . . . . . . . . . 2 . . . . . . . . . . 1 14 . . . . . . . Allies Hacked 1 | . . . . . . . . . . . . 1 . . . . . . . . . . . . . . . . . Hacks Repelled . | . . . . . . . . . . . . . . . . . . . . . . . . . . . . . . Allies | -11 -10 -10 -9 -9 -8 -7 -7 -7 -7 -6 -6 -6 -6 -6 -5 -5 -5 -5 -5 -4 -4 -4 -4 -4 -4 -3 -2 -1 -1 -------- Run | Yrd Mat Min Mat Sto Mat Fac Low Low Zio Pro Fac Low Low Dat Pro Fac Upp Upp Zhi Pro Fac Ext Cet Arc Hub Res Res Acc Com Total Allies 62 | . . 1 . 2 . . . . 4 2 3 . 2 . . 7 . . . . 1 27 5 . . 5 1 2 . Largest Group 16 | . . 1 . 2 . . . . 4 5 5 5 5 2 2 3 2 2 . . 1 13 16 11 8 4 1 3 . Highest-Rated Group 1057 | . . 31 . 62 . . . . 152 162 280 280 214 94 94 210 84 80 . . 56 652 1057 683 449 557 269 318 . Highest-Rated Ally 269 | . . 31 . 31 . . . . 41 41 70 70 70 65 65 70 43 41 . . 56 159 159 159 96 269 269 263 . Zionite Dispatches 12 | . . . . . . . . . . . 1 . . . . 3 . . . . . 1 . . . 3 2 2 . Heavy 1 | . . . . . . . . . . . . . . . . . . . . . . 1 . . . . . . . Light 3 | . . . . . . . . . . . 1 . . . . 1 . . . . . . . . . 1 . . . Recon 1 | . . . . . . . . . . . . . . . . . . . . . . . . . . . 1 . . Hacker 1 | . . . . . . . . . . . . . . . . 1 . . . . . . . . . . . . . Experimental 2 | . . . . . . . . . . . . . . . . . . . . . . . . . . 1 1 . . Offense Resupply 1 | . . . . . . . . . . . . . . . . . . . . . . . . . . . . 1 . Defense Resupply 1 | . . . . . . . . . . . . . . . . . . . . . . . . . . 1 . . . Infowar Resupply 2 | . . . . . . . . . . . . . . . . 1 . . . . . . . . . . . 1 . Total Orders 10 | . . . . 4 . . . . . . . . . . . 2 . . . . . . . . . 2 . 2 . STAY 2 | . . . . . . . . . . . . . . . . 1 . . . . . . . . . 1 . . . DROP 4 | . . . . . . . . . . . . . . . . 1 . . . . . . . . . 1 . 2 . EXPLORE 2 | . . . . 2 . . . . . . . . . . . . . . . . . . . . . . . . . RETURN 2 | . . . . 2 . . . . . . . . . . . . . . . . . . . . . . . . . Ally Attacks 756 | . . . . 23 . . . . . 43 40 42 34 . 1 78 7 14 . . 9 144 80 38 35 90 64 14 . Total Damage 28151 | . . . . 318 . . . . . 1009 738 585 613 . . 2137 36 384 . . 328 4698 2258 1332 880 4855 6804 1176 . Kills 173 | . . . . 6 . . . . . 11 8 7 6 . . 12 . 3 . . 5 25 10 4 6 23 40 7 . Allies Corrupted 6 | . . . . . . . . . . . . . . . . 1 . . . . . . . . 3 1 . 1 . Allies Melted 4 | . . . . . . . . . . . . . . . . . . . . . . 2 . 1 . 1 . . . Intel | -11 -10 -10 -9 -9 -8 -7 -7 -7 -7 -6 -6 -6 -6 -6 -5 -5 -5 -5 -5 -4 -4 -4 -4 -4 -4 -3 -2 -1 -1 ------- Run | Yrd Mat Min Mat Sto Mat Fac Low Low Zio Pro Fac Low Low Dat Pro Fac Upp Upp Zhi Pro Fac Ext Cet Arc Hub Res Res Acc Com Robot Analysis Total 5 | . . . . 1 . . . . . . . . . . . . . . 4 . . . . . . . . . . Derelict Logs Recovered 10 | . . 1 . . . . 1 1 1 . . 1 1 . . . 2 1 . 1 . . . . . . . . . Drone Launches 2 | . . . . 2 . . . . . . . . . . . . . . . . . . . . . . . . . Drone Recoveries 1 | . . . . 1 . . . . . . . . . . . . . . . . . . . . . . . . . Decoded 0b10 Intel 39 | . . . . . . . . . . . . . . . . . . . . . 6 21 1 2 9 . . . . Traps 23 | . . . . . . . . . . . . . . . . . . . . . 5 12 . . 6 . . . . Emergency Access 9 | . . . . . . . . . . . . . . . . . . . . . . 6 . . 3 . . . . Garrisons 1 | . . . . . . . . . . . . . . . . . . . . . 1 . . . . . . . . Exits 6 | . . . . . . . . . . . . . . . . . . . . . . 3 1 2 . . . . . Zionite Intel Received 6 | . . . . . . . . . . . 1 . . . . 2 . . . . . . . . . . . . 3 Branch Access 2 | . . . . . . . . . . . 1 . . . . . . . . . . . . . . . . . 1 Unaware Analyses 2 | . . . . . . . . . . . . . . . . 1 . . . . . . . . . . . . 1 Active Garrisons 1 | . . . . . . . . . . . . . . . . 1 . . . . . . . . . . . . . Depthwide Sectors/0 1 | . . . . . . . . . . . . . . . . . . . . . . . . . . . . . 1 Exploration | -11 -10 -10 -9 -9 -8 -7 -7 -7 -7 -6 -6 -6 -6 -6 -5 -5 -5 -5 -5 -4 -4 -4 -4 -4 -4 -3 -2 -1 -1 ------------- Run | Yrd Mat Min Mat Sto Mat Fac Low Low Zio Pro Fac Low Low Dat Pro Fac Upp Upp Zhi Pro Fac Ext Cet Arc Hub Res Res Acc Com Turns Passed 30888 | 124 1357 1090 696 1502 1358 888 1209 1452 2301 1188 1409 2540 1647 213 952 1502 661 812 272 931 833 2208 559 228 437 847 811 540 321 Spaces Moved 15585 | 84 631 555 264 650 581 445 670 845 1349 657 528 1010 656 87 359 762 395 458 158 514 372 1025 302 131 145 787 385 303 477 Core 699 | 25 . . . . . . . . . . . . . . . . . . . . . . . . 1 31 . 167 475 Treads 14077 | 59 631 555 264 650 581 445 670 845 1349 657 528 1010 656 87 359 762 395 458 158 514 351 719 302 131 144 282 385 130 . Legs . | . . . . . . . . . . . . . . . . . . . . . . . . . . . . . . Wheels 327 | . . . . . . . . . . . . . . . . . . . . . 21 306 . . . . . . . Hover 72 | . . . . . . . . . . . . . . . . . . . . . . . . . . 70 . . 2 Flight 410 | . . . . . . . . . . . . . . . . . . . . . . . . . . 404 . 6 . Fastest Speed 30 | 50 160 160 160 160 160 162 165 167 167 167 167 247 247 247 247 162 162 162 162 162 162 106 153 153 153 30 152 35 50 Average Speed 166 | 127 160 160 160 160 164 164 165 167 167 167 246 247 247 247 247 165 162 162 162 162 167 144 153 153 185 75 152 93 54 Slowest Speed 1550 | 160 160 160 160 240 240 165 167 167 167 167 247 247 247 247 247 247 162 162 162 162 245 245 153 153 1550 200 152 153 250 Overloaded Moves . | . . . . . . . . . . . . . . . . . . . . . . . . . . . . . . Propulsion Burnouts . | . . . . . . . . . . . . . . . . . . . . . . . . . . . . . . Robots Hopped 4 | . . . . . . . . . . . . . . . . . . . . . . . . . . 3 . 1 . Cave-ins Triggered . | . . . . . . . . . . . . . . . . . . . . . . . . . . . . . . Teleports 1 | . . . . . . . . . . . . . . . . . . . . . . . . . . 1 . . . Exploration Rate (%) 54 | 5 91 61 25 83 48 12 82 86 91 79 18 99 78 72 48 18 67 61 62 66 12 84 96 94 23 20 15 9 21 Regions Visited 29 Branch Regions 19 Pre-discovered Areas 9 | . . 1 . . . . . . 1 . . . . 1 . . . . 3 1 . . . . . . . . 2 Known Exits Taken 17 | . . . 1 . . 1 . . . 1 1 1 1 1 1 1 1 1 1 1 1 1 . 1 1 . . . . Unknown Exits Taken 12 | 1 1 1 . 1 1 . 1 1 1 . . . . . . . . . . . . . 1 . . 1 1 1 . Scrap Searched 32 | . . 1 . . . . 2 5 3 2 . 4 7 . 3 . 2 2 . 1 . . . . . . . . . Spaces Dug 70 | . . . . 10 3 7 . . . 11 2 . . . . 4 . . . 1 1 17 . . 1 2 3 . 8 Terrain Destroyed 864 | . 4 2 23 52 32 7 80 35 . 63 15 2 . . 67 28 4 43 . 25 113 45 1 1 172 7 14 21 8 Melee 13 | . . . . 1 3 7 . . . . 2 . . . . . . . . . . . . . . . . . . Projectile 178 | . . 2 3 . 5 . 1 . . . . 2 . . 2 28 4 3 . 5 21 45 1 1 12 7 14 14 8 AOE 673 | . 4 . 20 51 24 . 79 35 . 63 13 . . . 65 . . 40 . 20 92 . . . 160 . . 7 . Terrain Rammed . | . . . . . . . . . . . . . . . . . . . . . . . . . . . . . . Walls Destroyed . | . . . . . . . . . . . . . . . . . . . . . . . . . . . . . . Machines Disabled . | . . . . . . . . . . . . . . . . . . . . . . . . . . . . . . Actions | -11 -10 -10 -9 -9 -8 -7 -7 -7 -7 -6 -6 -6 -6 -6 -5 -5 -5 -5 -5 -4 -4 -4 -4 -4 -4 -3 -2 -1 -1 --------- Run | Yrd Mat Min Mat Sto Mat Fac Low Low Zio Pro Fac Low Low Dat Pro Fac Upp Upp Zhi Pro Fac Ext Cet Arc Hub Res Res Acc Com Total 18939 | 98 846 695 440 977 817 566 727 878 1399 720 623 1046 683 86 403 908 409 496 172 582 504 1611 387 151 226 992 538 424 535 Wait 1359 | 3 96 61 80 197 69 78 14 20 31 20 61 13 14 . 12 62 7 13 . 33 26 150 31 15 18 122 61 33 19 Move 15548 | 83 630 554 263 649 580 444 669 844 1348 656 527 1009 655 86 358 761 394 457 157 513 371 1024 301 130 144 780 384 300 477 Hop 4 | . . . . . . . . . . . . . . . . . . . . . . . . . . 3 . 1 . Pick Up 217 | 6 10 19 8 18 16 9 4 1 4 4 6 1 . . 4 7 2 . 2 3 14 36 11 1 2 8 14 3 4 Fast Attach 187 | 6 10 2 15 7 12 3 1 2 6 2 6 6 6 . 2 9 . 1 4 1 2 19 6 . 2 30 11 8 8 Attach 108 | . 1 1 4 5 9 3 1 . . . 3 . . . 1 4 . . 1 2 17 23 1 . 9 5 2 10 6 Detach 19 | . . . . . 1 . . . . . . . . . 1 . . . . . 3 4 . . . 1 2 2 5 Swap 156 | . 6 2 2 13 24 4 7 2 . 10 5 5 2 . 7 7 2 8 2 8 10 10 7 . 4 2 6 1 . Drop 253 | . 16 14 18 10 18 5 4 3 10 6 8 7 6 . 6 13 1 1 5 3 8 27 19 1 5 16 12 3 8 Fire 804 | . 76 41 50 73 84 13 27 6 . 14 5 4 . . 12 45 3 16 . 19 47 82 3 4 42 23 45 62 8 Melee 19 | . . . . 5 3 7 . . . . 2 . . . . . . . 1 . . . . . . 1 . . . Ram 3 | . . . . . . . . . . . . . . . . . . . . . . 1 . . . 1 . 1 . Kick . | . . . . . . . . . . . . . . . . . . . . . . . . . . . . . . Crush 6 | . 1 1 . . 1 . . . . . . . . . . . . . . . 1 1 . . . . 1 . . Escape Stasis . | . . . . . . . . . . . . . . . . . . . . . . . . . . . . . . Rewire 240 | . . . . . . . . . . 8 . 1 . . . . . . . . 5 226 . . . . . . . Trap . | . . . . . . . . . . . . . . . . . . . . . . . . . . . . . . Miscellaneous 16 | . . . . . . . . . . . . . . . . . . . . . . 8 8 . . . . . . Route ------- -11/Scrapyard -10/Materials (discovered 5 exits: *Mat x3 / *Min x2) -10/Mines (discovered 4 exits: *Mat x2 / [*Exi] / [*Sub]) -9/Materials (discovered 2 exits: *Mat / *Sto) -9/Storage -8/Materials -7/Factory (discovered 2 exits: *Low x2) -7/Lower Caves -7/Lower Caves (discovered 2 exits: *Fac / *Zio) -7/Zion -6/Proximity Caves -6/Factory (discovered 3 exits: *Fac / *Low x2) -6/Lower Caves -6/Lower Caves (discovered 2 exits: *Fac / *Dat) -6/Data Miner -5/Proximity Caves -5/Factory -5/Upper Caves -5/Upper Caves (discovered 2 exits: *Fac / *Zhi) -5/Zhirov -4/Proximity Caves -4/Factory (discovered 2 exits: Res / *Ext) -4/Extension (discovered 3 exits: *Res x2 / *Cet) -4/Cetus (discovered 3 exits: *Res x2 / *Arc) -4/Archives (discovered 3 exits: *Res / *Hub x2) -4/Hub_04(d) -3/Research -2/Research -1/Access -1/Command History --------- Turn | Location | Event 4 | -11/Scrapyard | Discovered new exit (range 16) 125 | -11/Scrapyard | Entered Materials 272 | -10/Materials | Discovered new exit (range 14) 303 | -10/Materials | Build established: Mutant 793 | -10/Materials | Discovered new exit (range 8) 969 | -10/Materials | Discovered new exit (range 14) 1054 | -10/Materials | Discovered new exit (range 4) 1193 | -10/Materials | Discovered new exit (range 7) 1209 | -10/Materials | Build established: Scavenger-Mutant 1237 | -10/Materials | Repaired Lgt. Treads 1265 | -10/Materials | Repaired Lgt. Treads 1482 | -10/Materials | Entered Mines 1686 | -10/Mines | Learned location of Storage (-9) 1845 | -10/Mines | Discovered new exit (range 3) 1882 | -10/Mines | Core integrity fell below 50% 1903 | -10/Mines | Escorted by a lone wolf Derelict 1965 | -10/Mines | Discovered new exit (range 5) 1979 | -10/Mines | Met a Derelict who couldn't figure out how to use a Trap Extractor 2207 | -10/Mines | Excavation squad dispatched 2207 | -10/Mines | A large section of the Mines collapsed 2315 | -10/Mines | Build established: Mutant 2386 | -10/Mines | Discovered new exit (range 16) 2424 | -10/Mines | Deemed a non-threat by the Exiles lab entrance 2424 | -10/Mines | Discovered new exit (range 5) 2572 | -10/Mines | Entered Materials 2572 | -9/Materials | Evolved 2 slots: Propulsion x1, Utility x1 2573 | -9/Materials | Identified exit to Storage 2779 | -9/Materials | Repaired Lgt. Treads 2819 | -9/Materials | Build established: Scavenger-Mutant 3059 | -9/Materials | Discovered new exit (range 10) 3268 | -9/Materials | Entered Storage 3753 | -9/Storage | Discovered new exit (range 16) 3851 | -9/Storage | Repaired Lrg. Storage Unit 4102 | -9/Storage | Met a pair of Derelict thieves 4177 | -9/Storage | Garrison activated, responded to threat 4478 | -9/Storage | Core integrity fell below 50% 4505 | -9/Storage | Lost 3 parts (1n1u1w) 4770 | -9/Storage | Entered Materials 4770 | -8/Materials | Evolved 2 slots: Utility x2 5475 | -8/Materials | Garrison activated, responded to threat 5694 | -8/Materials | Garrison activated, responded to threat 5743 | -8/Materials | Build established: Mutant 5912 | -8/Materials | Discovered new exit (range 15) 6106 | -8/Materials | System corruption reached 10% 6109 | -8/Materials | System corruption reached 30% 6128 | -8/Materials | Entered Factory 6128 | -7/Factory | Evolved 2 slots: Propulsion x1, Utility x1 6259 | -7/Factory | Repaired Lgt. Treads 6466 | -7/Factory | Repaired Arm. Treads 6758 | -7/Factory | Identified exit to Lower Caves 7016 | -7/Factory | Entered Lower Caves 7685 | -7/Lower Caves | Attracted the attention of an 0b10 checkpoint 7956 | -7/Lower Caves | Learned 12 Factory zone layouts 8022 | -7/Lower Caves | Ambushed by research squad 8116 | -7/Lower Caves | Discovered new exit (range 11) 8170 | -7/Lower Caves | Attacked by a delusional Derelict stockpiling parts 8225 | -7/Lower Caves | Entered another Lower Caves area 8501 | -7/Lower Caves | Identified exit to Factory 9592 | -7/Lower Caves | Discovered new exit (range 15) 9677 | -7/Lower Caves | Entered Zion 9824 | -7/Zion | System corruption cleaned by Quarantine Array 9870 | -7/Zion | Discovered new exit (range 15) 10114 | -7/Zion | Given the Hacking Drone Bay 10118 | -7/Zion | Found Prototype Device 10214 | -7/Zion | Found Prototype Launcher 10214 | -7/Zion | Identified Gui. Missile Launcher 10502 | -7/Zion | Met Imprinter 11657 | -7/Zion | Imprinted 11660 | -7/Zion | Declared Zion's savior 11978 | -7/Zion | Entered Proximity Caves 11978 | -6/Proximity Caves | Accompanied by 4 allies 12199 | -6/Proximity Caves | Attracted the attention of an 0b10 outpost 13149 | -6/Proximity Caves | Discovered exit to Factory (range 3) 13166 | -6/Proximity Caves | Entered Factory 13166 | -6/Factory | Accompanied by 4 allies 13166 | -6/Factory | Evolved 2 slots: Power x1, Utility x1 13167 | -6/Factory | Identified exit to Factory 13456 | -6/Factory | Build established: Scavenger-Mutant 14163 | -6/Factory | Retrieved Zion intel report: Branch Access 14163 | -6/Factory | Identified exit to Lower Caves 14164 | -6/Factory | Zion Light squad teleported in 14575 | -6/Factory | Entered Lower Caves 14575 | -6/Lower Caves | Accompanied by 5 allies 16620 | -6/Lower Caves | Attracted the attention of an 0b10 checkpoint 16686 | -6/Lower Caves | Found Prototype Protection 16686 | -6/Lower Caves | Identified Zio. Weapon Casing 16776 | -6/Lower Caves | Discovered new exit (range 7) 16789 | -6/Lower Caves | Identified exit to Lower Caves 17115 | -6/Lower Caves | Entered another Lower Caves area 17115 | -6/Lower Caves | Accompanied by 3 allies 17195 | -6/Lower Caves | A Commander dispatched an escort 17222 | -6/Lower Caves | Learned Armory trap positions 17222 | -6/Lower Caves | Learned Extension security intel 17878 | -6/Lower Caves | Discovered exit to Factory (range 13) 17999 | -6/Lower Caves | Learned 4 Factory zone layouts 18626 | -6/Lower Caves | Discovered new exit (range 9) 18671 | -6/Lower Caves | Identified exit to Data Miner 18712 | -6/Lower Caves | Lost 3 allies 18762 | -6/Lower Caves | Entered Data Miner 18762 | -6/Data Miner | Accompanied by 2 allies 18762 | -6/Data Miner | Discovered new exit (range 6) 18809 | -6/Data Miner | Met Data Miner 18861 | -6/Data Miner | Learned location of Section 7 (-3) 18861 | -6/Data Miner | Acquired the access code to Warlord's prototype stash 18901 | -6/Data Miner | Received God Mode back door access code from Data Miner 18972 | -6/Data Miner | Identified exit to Proximity Caves 18975 | -6/Data Miner | Entered Proximity Caves 18975 | -5/Proximity Caves | Accompanied by 2 allies 19838 | -5/Proximity Caves | Discovered exit to Factory (range 16) 19927 | -5/Proximity Caves | Entered Factory 19927 | -5/Factory | Evolved 2 slots: Propulsion x1, Weapon x1 19928 | -5/Factory | Identified exit to Upper Caves 20225 | -5/Factory | Zion Light squad teleported in 20257 | -5/Factory | Build established: Scavenger-Skirmisher 21277 | -5/Factory | Retrieved Zion intel report: Unaware Analyses 21278 | -5/Factory | Zion Hacker squad teleported in 21393 | -5/Factory | Retrieved Zion intel report: Active Garrisons 21394 | -5/Factory | Zion Infowar Resupply teleported in 21397 | -5/Factory | Terminal network hard line cut 21429 | -5/Factory | Entered Upper Caves 21429 | -5/Upper Caves | Accompanied by 2 allies 21472 | -5/Upper Caves | Encountered a Warlord checkpoint 21766 | -5/Upper Caves | Identified exit to Upper Caves 22036 | -5/Upper Caves | Learned location of 1 exit from Factory 22090 | -5/Upper Caves | Entered another Upper Caves area 22090 | -5/Upper Caves | Accompanied by 2 allies 22199 | -5/Upper Caves | Discovered new exit (range 16) 22228 | -5/Upper Caves | Identified exit to Factory 22544 | -5/Upper Caves | Attracted the attention of an 0b10 checkpoint 22586 | -5/Upper Caves | Spotted B-75 Beast 22648 | -5/Upper Caves | Destroyed B-75 Beast 22700 | -5/Upper Caves | Learned Factory emergency access door positions 22874 | -5/Upper Caves | Discovered new exit (range 3) 22875 | -5/Upper Caves | Identified exit to Zhirov 22902 | -5/Upper Caves | Entered Zhirov 22902 | -5/Zhirov | Discovered new exit (range 3) 22911 | -5/Zhirov | Identified exit to Proximity Caves 22935 | -5/Zhirov | Met Zhirov 22975 | -5/Zhirov | Learned location of Quarantine (-3) 22975 | -5/Zhirov | Learned location of Testing (-2) 22975 | -5/Zhirov | Learned location of Command (-1) 23008 | -5/Zhirov | Zhirov requested help retrieving the SGEMP Prototype 23039 | -5/Zhirov | Found Alien Artifact 23039 | -5/Zhirov | Identified Integrated Dissipator 23039 | -5/Zhirov | Installed Integrated Dissipator, increased core heat dissipation (+20) 23106 | -5/Zhirov | Found Alien Artifact 23174 | -5/Zhirov | Entered Proximity Caves 23289 | -4/Proximity Caves | Spotter reported a threat 23527 | -4/Proximity Caves | Spotter reported a threat 23683 | -4/Proximity Caves | Build established: Scavenger-Tank 24074 | -4/Proximity Caves | Discovered exit to Factory (range 4) 24105 | -4/Proximity Caves | Entered Factory 24105 | -4/Factory | Evolved 2 slots: Utility x2 24106 | -4/Factory | Identified exit to Research 24107 | -4/Factory | Identified exit to Extension 24888 | -4/Factory | First assault squad dispatched 24933 | -4/Factory | Lost 5 parts (3p1n1u) 24938 | -4/Factory | Entered Extension 25121 | -4/Extension | Rescued a captive Derelict 25122 | -4/Extension | Rescued a captive Derelict 25188 | -4/Extension | First assault squad dispatched 25192 | -4/Extension | Rescued a captive Derelict 25253 | -4/Extension | Rescued a captive Derelict 25254 | -4/Extension | Rescued a captive Derelict 25313 | -4/Extension | Rescued a captive Derelict 25375 | -4/Extension | Lost 5 allies 25394 | -4/Extension | Spotted B-86 Titan 25865 | -4/Extension | Destroyed B-86 Titan 25891 | -4/Extension | Spotted B-86 Titan 25904 | -4/Extension | Lost 14 parts (2p5n5u2w) 25910 | -4/Extension | System corruption reached 10% 26208 | -4/Extension | Zion Heavy squad teleported in 26239 | -4/Extension | Lost 3 parts (1p1n1u) 26321 | -4/Extension | Found Hvy. Insulated Plating 26438 | -4/Extension | Disrupted transfer network 26442 | -4/Extension | Terminal network hard line cut 26553 | -4/Extension | Rescued a captive Derelict 26570 | -4/Extension | Rescued a captive Derelict 26651 | -4/Extension | Lost 3 allies 26796 | -4/Extension | Rescued a captive Derelict 26796 | -4/Extension | Rescued a captive Derelict 26915 | -4/Extension | Rescued A7 27039 | -4/Extension | Identified exit to Cetus 27146 | -4/Extension | Entered Cetus 27146 | -4/Cetus | Accompanied by 13 allies (A7) 27151 | -4/Cetus | Acquired a Cetus Manufacturing Module code from A7 27163 | -4/Cetus | Spotted Cetus Guard 27163 | -4/Cetus | Spotted Cetus Guard 27163 | -4/Cetus | Spotted Cetus Guard 27163 | -4/Cetus | Spotted Cetus Guard 27171 | -4/Cetus | Destroyed Cetus Guard 27174 | -4/Cetus | Destroyed Cetus Guard 27187 | -4/Cetus | Allies destroyed Cetus Guard 27190 | -4/Cetus | Allies destroyed Cetus Guard 27253 | -4/Cetus | Discovered exit to Research (range 21) 27347 | -4/Cetus | Started Cetus Manufacturing Module 27372 | -4/Cetus | Manufactured an Enhanced Grunt 27380 | -4/Cetus | Build established: Commander-Tank 27397 | -4/Cetus | Manufactured an Enhanced Grunt 27422 | -4/Cetus | Manufactured an Enhanced Grunt 27447 | -4/Cetus | Manufactured an Enhanced Grunt 27453 | -4/Cetus | Escorted A7 to Cetus Mainframe 27472 | -4/Cetus | Manufactured an Enhanced Grunt 27510 | -4/Cetus | Discovered new exit (range 21) 27543 | -4/Cetus | Spotted Cetus Guard 27543 | -4/Cetus | Spotted Cetus Guard 27544 | -4/Cetus | Spotted Cetus Guard 27544 | -4/Cetus | Spotted Cetus Guard 27549 | -4/Cetus | Allies destroyed Cetus Guard 27563 | -4/Cetus | Allies destroyed Cetus Guard 27565 | -4/Cetus | Allies destroyed Cetus Guard 27569 | -4/Cetus | Allies destroyed Cetus Guard 27593 | -4/Cetus | Lost 5 allies 27605 | -4/Cetus | Scared off Revision 17 27662 | -4/Cetus | Found Prototype Device 27662 | -4/Cetus | Identified Exp. Thermal Shield 27705 | -4/Cetus | Entered Archives 27705 | -4/Archives | Accompanied by 11 allies (A7) 27711 | -4/Archives | Received a hacking code to weaken MAIN.C 27769 | -4/Archives | Unable to access archive contents 27775 | -4/Archives | Discovered exit to Research (range 17) 27776 | -4/Archives | Identified exit to Hub_04(d) 27784 | -4/Archives | Unable to access archive contents 27813 | -4/Archives | Unable to access archive contents 27813 | -4/Archives | Unable to access archive contents 27832 | -4/Archives | Unable to access archive contents 27853 | -4/Archives | Unable to access archive contents 27933 | -4/Archives | Entered Hub_04(d) 27933 | -4/Hub_04(d) | Accompanied by 8 allies 28149 | -4/Hub_04(d) | Discovered exit to Research (range 9) 28203 | -4/Hub_04(d) | Network Hub disabled 28205 | -4/Hub_04(d) | Spotted Lightning 28207 | -4/Hub_04(d) | Spotted Lightning 28207 | -4/Hub_04(d) | Spotted Lightning 28227 | -4/Hub_04(d) | Spotted Lightning 28229 | -4/Hub_04(d) | Murdered 3 allies 28234 | -4/Hub_04(d) | System corruption reached 30% 28250 | -4/Hub_04(d) | Lost 4 allies 28252 | -4/Hub_04(d) | Destroyed Lightning 28269 | -4/Hub_04(d) | Destroyed Lightning 28279 | -4/Hub_04(d) | Destroyed Lightning 28321 | -4/Hub_04(d) | Lost 13 parts (3p2n5u3w) 28351 | -4/Hub_04(d) | Core integrity fell below 50% 28370 | -4/Hub_04(d) | Entered Research 28370 | -3/Research | Evolved 2 slots: Propulsion x1, Utility x1 28384 | -3/Research | Lost 8 parts (2n5u1w) 28411 | -3/Research | Released all parts (6) 28573 | -3/Research | Zion Light squad teleported in 28681 | -3/Research | Garrison activated, responded to threat 28972 | -3/Research | Zion Experimental squad teleported in 29061 | -3/Research | Cargo convoy interrupted 29064 | -3/Research | Spotted Striker 29067 | -3/Research | Spotted Striker 29092 | -3/Research | Identified Transdimensional Reconstructor 29092 | -3/Research | Warped through subspace 29100 | -3/Research | Lost 3 allies 29104 | -3/Research | Zion Defense Resupply teleported in 29109 | -3/Research | Found Prototype Device 29109 | -3/Research | Identified Exp. EM Disruption Field 29120 | -3/Research | First assault squad dispatched 29183 | -3/Research | Discovered new exit (range 10) 29217 | -3/Research | Entered another Research area 29217 | -2/Research | Evolved 2 slots: Power x1, Utility x1 29285 | -2/Research | Zion Experimental squad teleported in 29507 | -2/Research | First assault squad dispatched 29674 | -2/Research | Garrison activated, responded to threat 29964 | -2/Research | Build established: Scavenger-Tank 29983 | -2/Research | Discovered new exit (range 16) 30002 | -2/Research | Zion Recon squad teleported in 30028 | -2/Research | Entered Access 30028 | -1/Access | Accompanied by 1 ally 30028 | -1/Access | Evolved 2 slots: Utility x1, Weapon x1 30063 | -1/Access | Zion Infowar Resupply teleported in 30069 | -1/Access | Found Prototype Processor 30069 | -1/Access | Identified Exp. Signal Interpreter 30148 | -1/Access | Spotted B-99 Colossus 30166 | -1/Access | Destroyed B-99 Colossus 30233 | -1/Access | Found Prototype Device 30233 | -1/Access | Identified Beam Splitter 30277 | -1/Access | Zion Offense Resupply teleported in 30278 | -1/Access | First assault squad dispatched 30327 | -1/Access | Garrison activated, responded to threat 30363 | -1/Access | System corruption reached 10% 30371 | -1/Access | Destroyed 8 combat bots 30475 | -1/Access | Released all parts (14) 30480 | -1/Access | Core integrity fell below 50% 30499 | -1/Access | Destroyed 10 combat bots 30513 | -1/Access | Lost 13 parts (3p6n1u3w) 30565 | -1/Access | Discovered new exit (range 7) 30568 | -1/Access | Entered Command 30585 | -1/Command | Retrieved Zion intel report: Unaware Analyses 30595 | -1/Command | Spotted B-99 Colossus 30734 | -1/Command | Core integrity fell below 20% 30752 | -1/Command | Build established: Mutant 30799 | -1/Command | Retrieved Zion intel report: Branch Access 30818 | -1/Command | First assault squad dispatched 30843 | -1/Command | Incoming assault squad redirected 30853 | -1/Command | Retrieved Zion intel report: Depthwide Sectors/-1 30889 | -1/Command | Destroyed by P-80 Master with Gamma Rifle Last Messages --------------- 30855_ Slug penetrates Wall. 30855_ Penetrated by Slug. 30858_ Slug penetrates Wall. 30858_ O-32 Director: "IFF HANDSHAKE FAILED. SECURING TERMINAL." 30860_ Slug penetrates Wall. 30862_ Penetrated by Slug. 30862_ Slug penetrates Wall. 30862_ Penetrated by Slug. 30862_ Slug penetrates Wall. 30863_ System corrupted: Adv. Heavy Siege Treads rejected. 30863_ Detecting system override signal. 30864_ Slug penetrates Wall. 30877_ Penetrated by Slug. 30878_ Adv. Heavy Treads destroyed. 30881_ Acquired Antigrav Array. 30885_ Dropped Antigrav Array. 30886_ System corrupted: Component data lost. 30886_ Acquired Antigrav Array. Map ----- +----------------------------------------------------+ | ????????????????????????????????? | | ????????????????????????????????? | | ????????????????????????????????? | | ????????????????????????????????? | | ????????????????????????????????? | | ????????????????????????????????? | | ????????????????????????????????? | | ????????????????????????????????? | | ????????????????????????????????? | | ????????????????????????????????? | | ????????????????????????????????? | | ????????????????? ????????????? | | ????????????????? ???????????? | | ???????????????? ???????????? | | ???????????????? ???????????? | | ????????????????# #???????????? | | ????????????????# #???????????? | | ????????????????# +???????????? | | ????????????????# #???????????? | | ????????????????# #???????????? | | ????????????????# #???????????? | | ????????????????# #???????????? | | ????????????????# #???????????? | | ????????????????# #???????????? | | ????????????????# ########????? | | ???????????###### #! !@ #????? | | ???????????# # # = =#????? | | ???????????# + p ! #????? | | ???????????# # # #????? | | ???????????# # # ! #????? | | ???????????# ?# # #????? | | ???????????# ?# ########????? | | ???????????+ ??# + #????? | | ???????????# ??# # #????? | | ???????????# ???# # #????? | | ???????????##???# # #????? | | ????????????????# # #????? | | ????????????????# # #????? | | ????????????????# ###+####????? | | ???????????????## ### #???????? | | ???????????????# ## ###?????? | | ???????????????# #?????? | | ???????????????# #?????? | | ???????????????# ] #?????? | | ???????????????# ##+#+#?????? | | ???????????????## ##??????????? | | ????????????????# #???????????? | | ????????????????# #???????????? | | ????????????????# #???????????? | | ????????????????# #???????????? | +----------------------------------------------------+ Best States ------------- Heat Dissipation 148 Energy Generation 83 Energy Capacity 1035 Matter Stores 300 Matter Capacity 300 Sight Range 22 Robot Scan Range 18 Terrain Scan Range 16 Terrain Scan Density 110 Jamming Range 14 Power Amplification 40 Base Temperature (-) 200 Armor Coverage 1400 Resistance: KI 25 Resistance: TH 75 Resistance: EM 75 Weapon Shielding 66 Evasion (%) 64 Core Analysis 6 Armor Integrity Analysis 30 Recoil Reduction 6 Particle Charging 20 Offensive Hacking 10 Item Schematics ----------------- Hcp. Storage Unit | -10/Materials | Hacked Huge Storage Unit | -10/Materials | Hacked Combat Drone Bay | -6/Data Miner | Free Lgt. Regenerative Plating | -6/Data Miner | Free Enh. Flexi-carbon Leg | -6/Data Miner | Free Imp. Matter Compressor | -6/Data Miner | Free Enh. Coil Gun | -6/Data Miner | Free Adv. Medium Treads | -6/Data Miner | Free Adv. Cryofiber Web | -6/Data Miner | Free Matter Neutralizer | -6/Data Miner | Free Assault Drone Bay | -5/Zhirov | Free Exp. Heat Sink | -5/Zhirov | Free Exp. Optical Array | -5/Zhirov | Free Imp. Arc Thrower | -5/Zhirov | Free Robot Schematics ------------------ G-50 Soldier | -6/Data Miner | Free B-60 Warrior | -6/Data Miner | Free B-48 Gladiator | -6/Data Miner | Free Fabricated ------------ Nothing Alien Tech Used ----------------- Integrated Dissipator Transdimensional Reconstructor Achievements -------------- Collateral Damage Main Advantage More Power To You Prison Break Project G-00 Revising The Future Challenges ------------ None Game ------ Seed EnhancedZhirovLegs Manual? 0 Play Time 09:14:05 Cumulative 73.1 hours Start 2024.08.03 @ 21:37:25 End 2024.08.14 @ 03:41:54 Sessions 19 Manual Loads 0 Difficulty Rogue Special Mode None Game No. 21 Rogue 21 Adventurer 0 Explorer 0 Win Type - Total 4 Types 4/0/0/0/0/0/0/0/0 Lore% 28 Gallery% 44 Achievement% 42 Wizard Run 0 Options --------- Layout 1 ASCII 0 Keyboard 0 Movement Numpad Keybinds 0 Fullscreen 1 Font 32/SmallcapsGlow Map View 50x35 Zoom Use 0% Tactical HUD 1 Map Filters NONE Filters NONE Steam 1 RUN: 0023d24a-7b56-4c24-bc24-adcfacf9d3cc